{"text_format":"1","workbook":"xlsx","n_sheets":3,"sheets":["Zeiterfassungsblatt","Stammdaten","Info"],"not_rendered":{"charts":0,"images":4,"macros":1,"external_links":1,"defined_names":5,"comments":0,"pivot_tables":0},"unopened":[],"bounds":{"document_bytes":16777216,"sheet_cells":100000,"rows_first":2000,"rows_last":500,"rows_between":2000,"halvings":0,"cell_chars":16384,"cell_head_chars":4096},"cells_cut":0,"cells_raw":0,"read":"whole","date_system":"1900"}

{"sheet":"Zeiterfassungsblatt","index":0,"n_rows":33,"n_cols":15,"rows_kept":33,"cut":false,"hidden":false,"merged":[[5,10,5,11],[29,13,29,14]]}
[null,"ZEITERFASSUNG",null,null,null,null,null,null,null,null,"Zeitaufnahme vom:",{"$f":"TODAY()","v":"2018-09-01"}]
[]
[null,null,null,null,null,null,null,null,null,null,"Start Zähler:","00:34:18"]
[]
[]
[null,null,null,null,null,null,null,null,null,"Setzt die Zeit auf 0","Zeigt den aktuellen Zählerstand seit Zählerstart"]
[]
[null,null,"20:04:11",null,null,null,null,null,null,null,null,"00:00:00"]
[]
[null,"Aufnahme\nNr.","Projekt-Nr. 1","Projekt-Nr. 2","Projekt-Nr. 3","Projekt-Nr. 4","Projekt-Nr. 5","Projekt-Nr. 6","Projekt-Nr. 7","Projekt-Nr. 8","Projekt-Nr. 9","Projekt-Nr. 10"]
[null,1,3171,55,null,null,6,null,null,900]
[null,2,62,120,null,null,2,3.0000000000002274,null,3005]
[null,3,6,707,null,null,11.999999999999773,3,2,9]
[null,4,7,null,null,null,19.000000000000227,3,0.99999999999977263,28]
[null,5,210,null,3,null,1,2.0000000000002274,1.0000000000004547,1]
[null,6,null,null,null,1361,2,2.0000000000002274,null,1]
[null,7,2,null,null,null,0.99999999999977263,2,null,0.99999999999954525]
[null,8,1,null,null,193,2,1.9999999999997726,null,3]
[null,9,null,1.9999999999995453,null,0.99999999999977263,0.99999999999977263,1,null,0,3]
[null,10,null,0.99999999999954525,null,1,0.99999999999977263,1.9999999999997726,null,2.0000000000002274]
[null,11,null,null,null,0.99999999999977263,1,1,null,131]
[null,12,null,null,null,1.0000000000004547,3.0000000000002274,1,null,1]
[null,13,null,null,null,1.0000000000002274,6.9999999999997726,0.99999999999954525,null,1]
[null,14,null,null,null,1.0000000000002274,2.0000000000002274,1,null,24]
[null,15,null,null,null,1,1,0.99999999999977263,null,5]
[null,16,null,null,null,0.99999999999977263,0.99999999999977263,24,null,1]
[null,17,null,null,null,1,1,1,null,1]
[null,18,null,null,null,null,1,1,null,3]
[null,19,null,null,null,null,null,15.999999999999773,null,3.0000000000002274]
[null,20,null,null,null,null,null,2.9999999999997726,null,null,null,null,null,"Tageswerte"]
[null,"Sekunden",{"$f":"SUBTOTAL(109,Tabelle1[Projekt-Nr. 1])","v":3459},{"$f":"SUBTOTAL(109,Tabelle1[Projekt-Nr. 2])","v":884.99999999999909},{"$f":"SUBTOTAL(109,Tabelle1[Projekt-Nr. 3])","v":3},{"$f":"SUBTOTAL(109,Tabelle1[Projekt-Nr. 4])","v":1563.0000000000002},{"$f":"SUBTOTAL(109,Tabelle1[Projekt-Nr. 5])","v":63.999999999999318},{"$f":"SUBTOTAL(109,Tabelle1[Projekt-Nr. 6])","v":69.999999999999091},{"$f":"SUBTOTAL(109,Tabelle1[Projekt-Nr. 7])","v":4.0000000000002274},{"$f":"SUBTOTAL(109,Tabelle1[Projekt-Nr. 8])","v":4120},{"$f":"SUBTOTAL(109,Tabelle1[Projekt-Nr. 9])","v":3},{"$f":"SUBTOTAL(109,Tabelle1[Projekt-Nr. 10])","v":0},null,{"$f":"SUM(C31:L31)","v":10170.999999999996},"Sekunden"]
[null,"Minuten",{"$f":"Tabelle1[[#Totals],[Projekt-Nr. 1]]/60","v":57.65},{"$f":"Tabelle1[[#Totals],[Projekt-Nr. 2]]/60","v":14.749999999999984},{"$f":"Tabelle1[[#Totals],[Projekt-Nr. 3]]/60","v":0.05},{"$f":"Tabelle1[[#Totals],[Projekt-Nr. 4]]/60","v":26.050000000000004},{"$f":"Tabelle1[[#Totals],[Projekt-Nr. 5]]/60","v":1.0666666666666553},{"$f":"Tabelle1[[#Totals],[Projekt-Nr. 6]]/60","v":1.1666666666666514},{"$f":"Tabelle1[[#Totals],[Projekt-Nr. 7]]/60","v":6.6666666666670454E-2},{"$f":"Tabelle1[[#Totals],[Projekt-Nr. 8]]/60","v":68.666666666666671},{"$f":"Tabelle1[[#Totals],[Projekt-Nr. 9]]/60","v":0.05},{"$f":"Tabelle1[[#Totals],[Projekt-Nr. 10]]/60","v":0},null,{"$f":"SUM(C32:L32)","v":169.51666666666665},"Minuten"]
[null,"Stunden",{"$f":"C32/60","v":0.96083333333333332},{"$f":"D32/60","v":0.24583333333333307},8.3333333333333339E-4,0.43416666666666676,1.777777777777759E-2,1.9444444444444191E-2,1.1111111111111742E-3,1.1444444444444446,8.3333333333333339E-4,0,null,{"$f":"SUM(C33:L33)","v":2.8252777777777776},"Stunden"]

{"sheet":"Stammdaten","index":1,"n_rows":25,"n_cols":4,"rows_kept":25,"cut":false,"hidden":false,"merged":[]}
[]
[]
[]
[]
[null,null,"Tätigkeit / Projekt / Aufgabe"]
[null,1,"Projekt-Nr. 1"," < Hier kannst du bis zu 20 Projektnamen, Tätigkeiten oder Aufgaben eingeben."]
[null,2,"Projekt-Nr. 2","    Diese können dann über das Pull-Down-Menü im Zeiterfassungsblatt abgerufen werden."]
[null,3,"Projekt-Nr. 3"]
[null,4,"Projekt-Nr. 4"]
[null,5,"Projekt-Nr. 5"]
[null,6,"Projekt-Nr. 6"]
[null,7,"Projekt-Nr. 7"]
[null,8,"Projekt-Nr. 8"]
[null,9,"Projekt-Nr. 9"]
[null,10,"Projekt-Nr. 10"]
[null,11]
[null,12]
[null,13]
[null,14]
[null,15]
[null,16]
[null,17]
[null,18]
[null,19]
[null,20]

{"sheet":"Info","index":2,"n_rows":32,"n_cols":1,"rows_kept":32,"cut":false,"hidden":false,"merged":[[2,0,2,2]]}
["Zeiterfassung"]
["Version 1.0"]
[]
["Allgemeine Information über diese Vorlage"]
["Eine Vorlage für alle die ihren Zeitaufwand für z.B. Projekte oder sonstige Tätigkeiten und Aufgaben notieren und nachweisen müssen."]
[]
["Eingabemöglichkeiten"]
["Die Vorlage funktioniert mit Excel-Makro-Programmierung. Es gibt keinen Blattschutz. Änderungen an Zeilen, Spalten und Zellen können gemacht werden, bitte aber jede Änderung testen. Die Makro-Programmierung bezieht sich auf fixe Zellen, weshalb Änderungen dazu führen können, dass das Makro nicht mehr richtig funktioniert und eine Fehlermeldung ausgegeben wird.\n\nBei Fragen können Sie sich gerne per E-Mail an mich wenden: "]
["info@alle-meine-vorlagen.de"]
["Allgemeine Hinweise"]
["Teste die Vorlage und gib mir ein Feedback. Jede Rückmeldung hilft, die Vorlage besser zu machen."]
["info@alle-meine-vorlagen.de"]
[]
[]
["Hier gibt es weitere kostenlose Excel-Vorlagen:"]
["https://www.alle-meine-vorlagen.de/"]
[]
["￭ FotoDoku - Erstellen Sie ihre individuellen Foto-Dokumentationen, Bautagebücher, …"]
["￭ Kostenkontrolle-Haushaltsbuch"]
["￭ Arbeitszeitnachweis"]
["￭ Anwesenheitsliste"]
["￭ Stadt, Land, Fluss"]
["￭ Bestellformularvorlage für deine Bestellung"]
["￭ AMV-Jahreskalender 2018"]
["￭ Telefonnotiz"]
["￭ Dauerkalender, Jahreskalender, ewiger Kalender"]
["￭ Familienkalender"]
["￭ Redaktionsplaner"]
["￭ Projektplan Excel"]
["￭ Energie-Verbrauchskosten-Kontrolle"]
[]
["Um nur einige zu nennen..."]